Cogmind - Beta 11.1 @@@ ROGUE MODE // 2022.05.10 @ 15:42:30 Player: Sara Result: Self-destructed Performance ------------- Evolutions (1) 500 Regions Visited (2) 400 Robots Destroyed (20) 100 Value Destroyed (386) 386 Prototype IDs (0) 0 Alien Tech Used (0) 0 Bonus (0) 0 TOTAL SCORE: 1386 Bonus ------- None Cogmind --------- Core Integrity 400/400 Matter 264/300 Energy 250/250 System Corruption 0% Temperature Cool (0) Movement Treading (160) Location -9/Materials Parts ------- > --- POWER (1) -------- Ion Engine > --- PROPULSION (4) --- Light Treads Light Treads Light Treads Light Treads > --- UTILITY (2) ------ High-capacity Storage Unit Sensor Array > --- WEAPON (2) ------- Medium Laser Light Cannon > --- INVENTORY (20) --- Ion Engine Light Ion Engine Light Ion Engine Aluminum Leg Aluminum Leg Terrain Scanner EM Pulse Gun Peak State ------------ > --- POWER ------------ Ion Engine > --- PROPULSION ------- Light Treads Light Treads Light Treads Light Treads > --- UTILITY ---------- High-capacity Storage Unit Sensor Array > --- WEAPON ----------- Medium Laser Light Cannon > --- INVENTORY -------- Ion Engine Light Ion Engine Light Ion Engine Aluminum Leg Aluminum Leg EM Pulse Gun [Rating: 9] Favorites ----------- Power Light Ion Engine Engine Light Ion Engine Propulsion Light Treads Treads Light Treads Utility Sensor Array Device Sensor Array Storage High-capacity Storage Unit Weapon Medium Laser Energy Gun Medium Laser Ballistic Cannon Light Cannon Build | -11 -10 -9 ------- Run | Scr Mat Mat Slots Evolved 2 | . . 2 Power . | . . . Propulsion 2 | . . 2 Utility . | . . . Weapon . | . . . Parts Attached 14 | 6 6 2 Power 4 | 1 3 . Engine 4 | 1 3 . Core . | . . . Reactor . | . . . Propulsion 4 | 2 . 2 Treads 4 | 2 . 2 Leg . | . . . Wheel . | . . . Hover . | . . . Flight . | . . . Utility 3 | 1 2 . Device 1 | . 1 . Storage 2 | 1 1 . Processor . | . . . Hackware . | . . . Protection . | . . . Artifact . | . . . Weapon 3 | 2 1 . Energy Gun 2 | 2 . . Energy Cannon . | . . . Ballistic Gun . | . . . Ballistic Cannon 1 | . 1 . Launcher . | . . . Special Weapon . | . . . Impact Weapon . | . . . Slashing Weapon . | . . . Piercing Weapon . | . . . Special Melee Weapon . | . . . Unidentified Prototypes . | . . . Parts Lost 2 | . 2 . Power 1 | . 1 . Propulsion . | . . . Utility . | . . . Weapon 1 | . 1 . Highest Loss Streak 1 | . 1 . To Critical Strikes . | . . . Average Slot Usage (%) 99 | . 98 100 Engine 13 | . 13 11 Treads 28 | . 28 44 Device 13 | . 13 11 Storage 13 | . 14 11 Energy Gun 20 | . 21 11 Ballistic Cannon 6 | . 6 11 Naked Turns . | . . . Heaviest Build 51 | 14 51 51 Greatest Support 80 | 40 40 80 Greatest Overweight (x) 1 | . 1 . Average Overweight (x) . | . . . Largest Inventory Capacity 20 | 8 20 20 Average Capacity 14 | 7 14 20 Most Carried 9 | 7 9 7 Average Carried 7 | 4 7 6 Final Capacity 20 | 8 20 20 Final Carried 8 | 6 8 7 Class Distribution -------------------- 100% | Mutant Dominant Class ---------------- Mutant | -10/Materials Mutant | -9/Materials Resources | -11 -10 -9 ----------- Run | Scr Mat Mat Matter Collected 386 | . 386 . Remotely . | . . . Salvage Created 745 | . 745 . Parts 31 | . 31 . Haulers Intercepted . | . . . Recyclers Shooed 3 | . 3 . Parts Field Recycled . | . . . Retrieved Matter . | . . . Parts Self-Destructed . | . . . Prevented . | . . . Kills | -11 -10 -9 ------- Run | Scr Mat Mat Combat Hostiles Destroyed 14 | . 14 . Guns 9 | . 9 . Cannons 4 | . 4 . Classes Destroyed 5 | . 5 . Worker 1 | . 1 . Recycler 4 | . 4 . Watcher 1 | . 1 . Swarmer 6 | . 6 . Grunt 8 | . 8 . Best Kill Streak 5 | . 5 . Combat Bots Only 3 | . 3 . Max Kills in Single Turn 1 | . 1 . Gunslinging . | . . . Exploded . | . . . Melee . | . . . Uniques/NPCs Destroyed . | . . . Combat | -11 -10 -9 -------- Run | Scr Mat Mat Damage Taken 661 | . 661 . Core 121 | . 121 . Absorbed by Shields . | . . . Core Remaining (%) 75 | 100 51 . Volleys Fired 61 | . 61 . Largest 2 | . 2 . Hottest 100 | . 100 . Shots Fired 121 | . 121 . Gun 98 | . 98 . Cannon 23 | . 23 . Launcher . | . . . Special . | . . . Kinetic 23 | . 23 . Thermal 98 | . 98 . Explosive . | . . . Electromagnetic . | . . . Robot Hit Streak 11 | . 11 . Robot Miss Streak 5 | . 5 . Penetration Max . | . . . Secondary Targets 2 | . 2 . Max Gunslinging Chain 1 | . 1 . Shots Hit Robots 72 | . 72 . Core Hits 29 | . 29 . Critical Kills . | . . . Critical Parts Destroyed . | . . . Critical Strikes 9 | . 9 . Burn 8 | . 8 . Blast 1 | . 1 . Melee Attacks . | . . . Impact . | . . . Slashing . | . . . Piercing . | . . . Sneak Attacks . | . . . Combat Hostiles . | . . . Follow-up Attacks . | . . . Damage Inflicted 1006 | . 1006 . Guns 825 | . 825 . Cannons 181 | . 181 . Explosions . | . . . Melee . | . . . Ramming . | . . . Kinetic 181 | . 181 . Thermal 825 | . 825 . Explosive . | . . . Electromagnetic . | . . . Impact . | . . . Slashing . | . . . Piercing . | . . . Highest Corruption . | . . . Average Corruption . | . . . Corruption Purged . | . . . Corruption Blocked . | . . . Overload Shots . | . . . Overflow Damage . | . . . Projectiles . | . . . Explosions . | . . . Melee . | . . . Knockbacks . | . . . Impact . | . . . Kinetic . | . . . Secondary . | . . . Self-Inflicted Damage . | . . . Shots . | . . . Rammed . | . . . Targets Rammed . | . . . Kicked . | . . . Crushed . | . . . Highest Temperature 423 | . 423 . Average Temperature 121 | . 121 . Received Heat Transfer 285 | . 285 . Effects 2 | . 2 . Shutdowns 1 | . 1 . Interference 1 | . 1 . Siege Activations . | . . . Robots Corrupted . | . . . Combat Hostiles . | . . . Parts Fried . | . . . Impact Corruptions . | . . . Robots Melted 1 | . 1 . Combat Hostiles 1 | . 1 . Parts Melted 4 | . 4 . Heat Transferred 3034 | . 3034 . Parts Sabotaged . | . . . Parts Stolen . | . . . Parts Stripped . | . . . Power Chain Reactions . | . . . Missiles Intercepted . | . . . Alert | -11 -10 -9 ------- Run | Scr Mat Mat Peak Influence 165 | . 165 20 Initial 20 | . . 20 Average 55 | . 62 20 Maximum Alert Level . | . . . Low Security (%) 100 | 100 100 100 Level 1 . | . . . Level 2 . | . . . Level 3 . | . . . Level 4 . | . . . Level 5 . | . . . High Security . | . . . Max Security . | . . . Squads Dispatched 2 | . 2 . Investigation 1 | . 1 . Extermination . | . . . Reinforcement 1 | . 1 . Assault . | . . . Garrison . | . . . Intercept . | . . . Searches Triggered . | . . . Construction Impeded . | . . . Haulers Reinforced . | . . . Active Scanning Responses . | . . . Cargo Convoy Interrupts . | . . . Stealth | -11 -10 -9 --------- Run | Scr Mat Mat Distress Signals . | . . . Communications Jammed . | . . . Distress Signals . | . . . Times Spotted 20 | . 18 2 Peak Tracking Total 3 | . 3 3 Tactical Retreats . | . . . Traps | -11 -10 -9 ------- Run | Scr Mat Mat Traps Triggered 1 | . 1 . Indirectly . | . . . Trap Hack Attempts . | . . . Triggered . | . . . Disarmed . | . . . Reprogrammed . | . . . Reused . | . . . Traps Extracted . | . . . Installed . | . . . Triggered . | . . . Machines | -11 -10 -9 ---------- Run | Scr Mat Mat Machines Disabled . | . . . Max in Single Turn . | . . . Machines Sabotaged . | . . . Garrisons Compromised . | . . . Overloaded Fab Kills . | . . . Hacking | -11 -10 -9 --------- Run | Scr Mat Mat Machines Accessed 4 | . 4 . Terminals 4 | . 4 . Fabricators . | . . . Repair Stations . | . . . Recycling Units . | . . . Scanalyzers . | . . . Garrison Access . | . . . Total Hacks 12 | . 12 . Successful 5 | . 5 . Failed 6 | . 6 . Catastrophic . | . . . Database Lockouts 1 | . 1 . Manual 5 | . 5 . Terminals 12 | . 12 . Fabricators . | . . . Repair Stations . | . . . Recycling Units . | . . . Scanalyzers . | . . . Garrison Access . | . . . Terminal Hacks 5 | . 5 . Record 2 | . 2 . Terminal Index 1 | . 1 . Unreport Threat 2 | . 2 . Fabricator Hacks . | . . . Repair Station Hacks . | . . . Recycling Unit Hacks . | . . . Scanalyzer . | . . . Garrison Access Hacks . | . . . Unauthorized Hacks . | . . . Terminals . | . . . Fabricators . | . . . Repair Stations . | . . . Recycling Units . | . . . Scanalyzers . | . . . Garrison Access . | . . . Data Cores Recovered . | . . . Used . | . . . Hacking Detections 3 | . 3 . Full Trace Events . | . . . Feedback Events . | . . . Feedback Blocked . | . . . Robot Schematics Acquired . | . . . Robots Built . | . . . Authchips . | . . . Time . | . . . Total Robot Build Rating . | . . . Part Schematics Acquired . | . . . Parts Built . | . . . Authchips . | . . . Time . | . . . Total Part Build Rating . | . . . Parts Repaired . | . . . Time . | . . . Parts Recycled . | . . . Recycled Matter . | . . . Retrieved Matter . | . . . Retrieved Components . | . . . Parts Scanalyzed . | . . . Part Schematics Acquired . | . . . Parts Damaged . | . . . Bothacking | -11 -10 -9 ------------ Run | Scr Mat Mat Used RIF Installer . | . . . Robots Hacked . | . . . Non-combat . | . . . Combat . | . . . Robot Hacks Applied . | . . . Relay Couplers Released . | . . . Fabnet Peak Effective % . | . . . Robots Rewired . | . . . Allies Hacked . | . . . Hacks Repelled . | . . . Allies | -11 -10 -9 -------- Run | Scr Mat Mat Total Allies . | . . . Largest Group . | . . . Highest-Rated Group . | . . . Highest-Rated Ally . | . . . Total Orders . | . . . Ally Attacks . | . . . Total Damage . | . . . Kills . | . . . Allies Corrupted . | . . . Allies Melted . | . . . Intel | -11 -10 -9 ------- Run | Scr Mat Mat Robot Analysis Total . | . . . Derelict Logs Recovered . | . . . Drone Launches . | . . . Drone Recoveries . | . . . Exploration | -11 -10 -9 ------------- Run | Scr Mat Mat Turns Passed 1330 | 95 1179 56 Spaces Moved 521 | 53 435 33 Core 4 | 4 . . Treads 517 | 49 435 33 Legs . | . . . Wheels . | . . . Hover . | . . . Flight . | . . . Fastest Speed 50 | 50 160 160 Average Speed 192 | 151 199 160 Slowest Speed 240 | 160 240 160 Overloaded Moves . | . . . Propulsion Burnouts . | . . . Robots Hopped . | . . . Cave-ins Triggered . | . . . Exploration Rate (%) 22 | 4 55 7 Regions Visited 2 Branch Regions . Pre-discovered Areas . | . . . Known Exits Taken . | . . . Unknown Exits Taken 2 | 1 1 . Scrap Searched . | . . . Spaces Dug . | . . . Terrain Destroyed . | . . . Melee . | . . . Projectile . | . . . AOE . | . . . Terrain Rammed . | . . . Walls Destroyed . | . . . Machines Disabled . | . . . Actions | -11 -10 -9 --------- Run | Scr Mat Mat Total 725 | 65 624 36 Wait 115 | . 115 . Move 519 | 52 434 33 Hop . | . . . Pick Up 13 | 7 5 1 Fast Attach 6 | 5 1 . Attach 5 | 1 2 2 Detach . | . . . Swap 3 | . 3 . Drop 3 | . 3 . Fire 61 | . 61 . Melee . | . . . Ram . | . . . Kick . | . . . Crush . | . . . Escape Stasis . | . . . Rewire . | . . . Trap . | . . . Miscellaneous . | . . . Route ------- -11/Scrapyard -10/Materials (discovered 2 exits: [*Mat x2]) -9/Materials History --------- Turn | Location | Event 2 | -11/Scrapyard | Discovered new exit (range 16) 96 | -11/Scrapyard | Entered Materials 303 | -10/Materials | Build established: Mutant 461 | -10/Materials | Discovered new exit (range 5) 1135 | -10/Materials | Central database locked down 1265 | -10/Materials | Discovered new exit (range 3) 1275 | -10/Materials | Entered another Materials area 1275 | -9/Materials | Evolved 2 slots: Propulsion x2 1331 | -9/Materials | Self-destructed Last Messages --------------- 01070_ K-01 Serf destroyed. 01072_ K-01 Serf collects debris. 01073_ Acquired 14 matter. 01077_ Acquired 4 matter. 01079_ K-01 Serf suffers critical hit (Burn). 01080_ Acquired 4 matter. 01083_ Acquired 1 matter. 01085_ Extracted 3 matter. 01109_ Connecting with Terminal... >>Index(Terminals) Found 8 terminals. Downloaded coordinate data. 01135_ Connecting with Terminal... 01135_ ALERT: Central database lockdown, local access denied. 01223_ R-06 Scavenger collects Med. Matter Pod. 01265_ EXIT=FOUND PARAMETERS=PROPULSION+2 LOCATION=UNKNOWN GOAL=ESCAPE 01293_ Acquired Terrain Scanner. Map ----- +----------------------------------------------------+ | ?????????????????????????????????????????????????? | | ?????????????????????????????????????????????????? | | ?????????????????????????????????????????????????? | | ?????????????????????????????????????????????????? | | ?????????????????????????????????????????????????? | | ?????????????????????????????????????????????????? | | ?????????????????????????????????????????????????? | | ?????????????????????????????????????????????????? | | ??????????????????????????? ???????????????????? | | ??????????????????????????? #??????????????????? | | ??????????????????????????? #??????????????????? | | ??????????????????????????? #??????????????????? | | ??????????????????????????? +??????????????????? | | ??????????????????????????? #??????????????????? | | ????????????????????????????? #??????????????????? | | ??????????????????????????#? #??????????????????? | | ??????????????????????????# #??????????????????? | | ??????????????????????????# #??????????????????? | | ??????????????????????????# #??????????????????? | | ?????????????????########## #??????????????????? | | ?????????????????# # #??????????????????? | | ?????????????????# # #??????????????????? | | ?????????????????# %! # #??????????????????? | | ?????????????????# !! # #########??????????? | | ?????????????????# + ## #??????????? | | ?????????????????# @# ## !!!#??????????? | | ?????????????????# + ## ! !#??????????? | | ?????????????????# # ## !!!#??????????? | | ?????????????????# # ## #??????????? | | ?????????????????########## ## #??????????? | | ??????????????#+########## ###+####??????????? | | ????????????? #??????????? | | ????????????? #??????????? | | ????????????? #??????????? | | ??????????????############ ########??????????? | | ?????????????????????????#######?????????????????? | | ?????????????????????????????????????????????????? | | ?????????????????????????????????????????????????? | | | | | | | | | | | | | | | | | | | | | | | | | +----------------------------------------------------+ Best States ------------- Heat Dissipation 28 Energy Generation 10 Energy Capacity 250 Matter Stores 300 Matter Capacity 300 Sight Range 16 Robot Scan Range 14 Terrain Scan Density 10 Evasion (%) 40 Recoil Reduction 4 Item Schematics ----------------- None Robot Schematics ------------------ None Fabricated ------------ Nothing Alien Tech Used ----------------- None Achievements -------------- None Challenges ------------ None Game ------ Seed MeleeIntegrityVibroblade Manual? 0 Play Time 00:06:35 Cumulative 100.2 hours Start 2022.05.10 @ 15:36:11 End 2022.05.10 @ 15:42:30 Sessions 1 Manual Loads 0 Difficulty Rogue Special Mode None Game No. 126 Rogue 126 Adventurer 0 Explorer 0 Win Type - Total 1 Types 1/0/0/0/0/0/0/0/0 Lore% 58 Gallery% 55 Achievement% 48 Wizard Run 0 Options --------- ASCII 0 Keyboard 0 Movement Numpad Keybinds 0 Fullscreen 1 Font 18/X11Bold Map View 76x50 Tactical HUD 1 Map Filters NONE Filters NONE Steam X RUN: 371ce13c-ee9f-48a4-8705-0e8c681ee590